Cogmind - Beta 10.2 @@@ ROGUE MODE // 2021.10.03 @ 10:36:55 Player: ktur Result: Self-destructed Performance ------------- Evolutions (1) 500 Regions Visited (2) 400 Robots Destroyed (31) 155 Value Destroyed (728) 728 Prototype IDs (0) 0 Alien Tech Used (0) 0 Bonus (0) 0 TOTAL SCORE: 1783 Bonus ------- None Cogmind --------- Core Integrity 53/400 Matter 300/300 Energy 100/100 System Corruption 0% Temperature Cool (0) Movement Core (550) Ox10 Location -9/Materials Parts ------- > --- POWER (1) -------- (None) > --- PROPULSION (2) --- (None) > --- UTILITY (4) ------ Large Storage Unit Large Storage Unit Hacking Suite > --- WEAPON (2) ------- (None) > --- INVENTORY (16) --- Light Nuclear Core Wheel Compact Wheel Hacking Suite Peak State ------------ > --- POWER ------------ Ion Engine > --- PROPULSION ------- Light Treads Light Treads > --- UTILITY ---------- Large Storage Unit Large Storage Unit Structural Scanner Hacking Suite > --- WEAPON ----------- Assault Rifle Light Assault Rifle > --- INVENTORY -------- Light Ion Engine Aluminum Leg Aluminum Leg Wheel Compact Wheel Hacking Suite Medium Laser Light Assault Rifle Light Assault Rifle [Rating: 12] Favorites ----------- Power Ion Engine Engine Ion Engine Propulsion Light Treads Treads Light Treads Leg Aluminum Leg Wheel Wheel Utility Large Storage Unit Device Structural Scanner Storage Large Storage Unit Hackware Hacking Suite Weapon Light Assault Rifle Energy Gun Medium Laser Energy Cannon Light EM Pulse Cannon Ballistic Gun Light Assault Rifle Build | -11 -10 -9 ------- Run | Scr Mat Mat Slots Evolved 2 | . . 2 Power . | . . . Propulsion . | . . . Utility 2 | . . 2 Weapon . | . . . Parts Attached 21 | 6 2 13 Power 3 | 1 . 2 Engine 3 | 1 . 2 Core . | . . . Reactor . | . . . Propulsion 5 | 2 . 3 Treads 2 | 2 . . Leg 2 | . . 2 Wheel 1 | . . 1 Hover . | . . . Flight . | . . . Utility 5 | 1 2 2 Device 1 | . 1 . Storage 3 | 1 1 1 Processor . | . . . Hackware 1 | . . 1 Protection . | . . . Artifact . | . . . Weapon 8 | 2 . 6 Energy Gun 2 | . . 2 Energy Cannon 1 | . . 1 Ballistic Gun 5 | 2 . 3 Ballistic Cannon . | . . . Launcher . | . . . Special Weapon . | . . . Impact Weapon . | . . . Slashing Weapon . | . . . Piercing Weapon . | . . . Special Melee Weapon . | . . . Unidentified Prototypes . | . . . Parts Lost 15 | . . 15 Power 3 | . . 3 Propulsion 4 | . . 4 Utility 1 | . . 1 Weapon 7 | . . 7 Highest Loss Streak 7 | . . 7 Average Slot Usage (%) 88 | . 97 82 Engine 10 | . 14 8 Treads 19 | . 28 14 Leg 2 | . . 4 Device 8 | . 11 6 Storage 17 | . 14 19 Hackware 5 | . . 8 Energy Gun 1 | . . 3 Ballistic Gun 21 | . 28 17 Naked Turns . | . . . Heaviest Build 41 | 12 25 41 Greatest Support 40 | 40 40 40 Greatest Overweight (x) 1 | . . 1 Average Overweight (x) . | . . . Largest Inventory Capacity 16 | 6 10 16 Average Capacity 12 | 5 9 14 Most Carried 10 | 6 9 10 Average Carried 7 | 3 7 7 Final Capacity 16 | 6 10 16 Final Carried 9 | 6 9 4 Class Distribution -------------------- 93% | Mutant 6% | Scavenger-Mutant Dominant Class ---------------- Mutant | -10/Materials Mutant | -9/Materials Resources | -11 -10 -9 ----------- Run | Scr Mat Mat Matter Collected 612 | 198 179 235 Remotely . | . . . Salvage Created 942 | . 282 660 Parts 69 | . 26 43 Haulers Intercepted . | . . . Recyclers Shooed . | . . . Parts Field Recycled . | . . . Retrieved Matter . | . . . Parts Self-Destructed . | . . . Prevented . | . . . Kills | -11 -10 -9 ------- Run | Scr Mat Mat Combat Hostiles Destroyed 24 | . 9 15 Guns 24 | . 9 15 Classes Destroyed 6 | . 4 2 Worker 1 | . 1 . Tunneler 1 | . . 1 Recycler 1 | . . 1 Operator 4 | . 2 2 Swarmer 8 | . 6 2 Grunt 16 | . 3 13 Best Kill Streak 5 | . 5 5 Combat Bots Only 5 | . 5 4 Max Kills in Single Turn 1 | . 1 1 Gunslinging . | . . . Exploded . | . . . Melee . | . . . Uniques/NPCs Destroyed . | . . . Combat | -11 -10 -9 -------- Run | Scr Mat Mat Damage Taken 1728 | . 236 1492 Core 379 | . 32 347 Absorbed by Shields . | . . . Core Remaining (%) 93 | 100 87 . Volleys Fired 100 | . 25 75 Largest 2 | . 2 2 Hottest 70 | . 40 70 Shots Fired 184 | . 50 134 Gun 178 | . 50 128 Cannon 6 | . . 6 Launcher . | . . . Special . | . . . Kinetic 155 | . 50 105 Thermal 23 | . . 23 Explosive . | . . . Electromagnetic 6 | . . 6 Robot Hit Streak 13 | . 12 13 Robot Miss Streak 5 | . 2 5 Penetration Max . | . . . Secondary Targets 3 | . 1 2 Max Gunslinging Chain 1 | . 1 1 Shots Hit Robots 137 | . 36 101 Core Hits 55 | . 15 40 Critical Hits 2 | . 2 . Critical Kills . | . . . Critical Parts Destroyed 2 | . 2 . Melee Attacks . | . . . Impact . | . . . Slashing . | . . . Piercing . | . . . Sneak Attacks . | . . . Combat Hostiles . | . . . Follow-up Attacks . | . . . Damage Inflicted 1483 | . 405 1078 Guns 1388 | . 403 985 Cannons 92 | . . 92 Explosions . | . . . Melee . | . . . Ramming 3 | . 2 1 Kinetic 1173 | . 403 770 Thermal 215 | . . 215 Explosive . | . . . Electromagnetic 92 | . . 92 Impact . | . . . Slashing . | . . . Piercing . | . . . Highest Corruption . | . . . Average Corruption . | . . . Corruption Purged . | . . . Overload Shots . | . . . Overflow Damage . | . . . Projectiles . | . . . Explosions . | . . . Melee . | . . . Knockbacks . | . . . Impact . | . . . Kinetic . | . . . Secondary . | . . . Self-Inflicted Damage . | . . . Shots . | . . . Rammed 5 | . 1 4 Targets Rammed 5 | . 1 4 Kicked . | . . . Crushed . | . . . Highest Temperature 120 | . 12 120 Average Temperature 33 | . 7 39 Received Heat Transfer 678 | . 96 582 Siege Activations . | . . . Robots Corrupted . | . . . Combat Hostiles . | . . . Parts Fried . | . . . Impact Corruptions . | . . . Robots Melted . | . . . Combat Hostiles . | . . . Parts Melted . | . . . Heat Transferred 617 | . . 617 Parts Sabotaged . | . . . Parts Stolen . | . . . Parts Stripped . | . . . Power Chain Reactions . | . . . Missiles Intercepted . | . . . Alert | -11 -10 -9 ------- Run | Scr Mat Mat Peak Influence 311 | . 271 311 Initial 114 | . . 114 Average 146 | . 121 180 Maximum Alert Level 1 | . 1 1 Low Security (%) 64 | 100 60 62 Level 1 35 | . 39 37 Level 2 . | . . . Level 3 . | . . . Level 4 . | . . . Level 5 . | . . . High Security . | . . . Max Security . | . . . Squads Dispatched 4 | . 2 2 Investigation . | . . . Extermination . | . . . Reinforcement 4 | . 2 2 Assault . | . . . Garrison . | . . . Intercept . | . . . Construction Impeded . | . . . Haulers Reinforced . | . . . Stealth | -11 -10 -9 --------- Run | Scr Mat Mat Distress Signals 3 | . 2 1 Communications Jammed . | . . . Distress Signals . | . . . Times Spotted 44 | . 16 28 Peak Tracking Total 7 | . 5 7 Tactical Retreats 2 | . . 2 Traps | -11 -10 -9 ------- Run | Scr Mat Mat Traps Triggered . | . . . Indirectly . | . . . Trap Hack Attempts . | . . . Triggered . | . . . Disarmed . | . . . Reprogrammed . | . . . Reused . | . . . Traps Extracted . | . . . Installed . | . . . Triggered . | . . . Machines | -11 -10 -9 ---------- Run | Scr Mat Mat Machines Disabled . | . . . Max in Single Turn . | . . . Machines Sabotaged . | . . . Garrisons Compromised . | . . . Overloaded Fab Kills . | . . . Fab Network Shutdowns . | . . . Hacking | -11 -10 -9 --------- Run | Scr Mat Mat Machines Accessed 4 | . 2 2 Terminals 3 | . 2 1 Fabricators . | . . . Repair Stations . | . . . Recycling Units . | . . . Scanalyzers 1 | . . 1 Garrison Access . | . . . Total Hacks 14 | . 7 7 Successful 9 | . 4 5 Failed 5 | . 3 2 Catastrophic 1 | . 1 . Database Lockouts . | . . . Manual 8 | . 5 3 Terminals 10 | . 7 3 Fabricators . | . . . Repair Stations . | . . . Recycling Units . | . . . Scanalyzers 4 | . . 4 Garrison Access . | . . . Terminal Hacks 4 | . 3 1 Robot Analysis 2 | . 2 . Terminal Index 1 | . 1 . Unreport Threat 1 | . . 1 Fabricator Hacks . | . . . Repair Station Hacks . | . . . Recycling Unit Hacks . | . . . Scanalyzer 4 | . . 4 Insert Component 2 | . . 2 Analyze 2 | . . 2 Garrison Access Hacks . | . . . Unauthorized Hacks 1 | . 1 . Terminals 1 | . 1 . Operators 1 | . 1 . Fabricators . | . . . Repair Stations . | . . . Recycling Units . | . . . Scanalyzers . | . . . Garrison Access . | . . . Data Cores Recovered . | . . . Used . | . . . Hacking Detections 4 | . 2 2 Full Trace Events . | . . . Feedback Events . | . . . Feedback Blocked . | . . . Robot Schematics Acquired . | . . . Robots Built . | . . . Matter . | . . . Time . | . . . Total Robot Build Rating . | . . . Part Schematics Acquired 2 | . . 2 Parts Built . | . . . Matter . | . . . Time . | . . . Total Part Build Rating . | . . . Parts Repaired . | . . . Time . | . . . Parts Recycled . | . . . Recycled Matter . | . . . Retrieved Matter . | . . . Retrieved Components . | . . . Parts Scanalyzed 2 | . . 2 Part Schematics Acquired 2 | . . 2 Parts Damaged . | . . . Bothacking | -11 -10 -9 ------------ Run | Scr Mat Mat Used RIF Installer . | . . . Robots Hacked . | . . . Non-combat . | . . . Combat . | . . . Robot Hacks Applied . | . . . Relay Couplers Released . | . . . Robots Rewired . | . . . Allies Hacked . | . . . Hacks Repelled . | . . . Allies | -11 -10 -9 -------- Run | Scr Mat Mat Total Allies . | . . . Largest Group . | . . . Highest-Rated Group . | . . . Highest-Rated Ally . | . . . Total Orders . | . . . Ally Attacks . | . . . Total Damage . | . . . Kills . | . . . Allies Corrupted . | . . . Allies Melted . | . . . Intel | -11 -10 -9 ------- Run | Scr Mat Mat Robot Analysis Total 2 | . 2 . Derelict Logs Recovered . | . . . Drone Launches . | . . . Drone Recoveries . | . . . Exploration | -11 -10 -9 ------------- Run | Scr Mat Mat Turns Passed 946 | 74 328 544 Spaces Moved 357 | 42 147 168 Core 6 | 6 . . Treads 320 | 36 147 137 Legs 31 | . . 31 Wheels . | . . . Hover . | . . . Flight . | . . . Fastest Speed 50 | 50 160 150 Average Speed 162 | 144 160 169 Slowest Speed 180 | 160 160 180 Overloaded Moves . | . . . Propulsion Burnouts . | . . . Robots Hopped . | . . . Cave-ins Triggered . | . . . Exploration Rate (%) 18 | 3 36 17 Regions Visited 2 Branch Regions . Pre-discovered Areas . | . . . Known Exits Taken . | . . . Unknown Exits Taken 2 | 1 1 . Scrap Searched . | . . . Spaces Dug . | . . . Terrain Destroyed . | . . . Melee . | . . . Projectile . | . . . AOE . | . . . Terrain Rammed . | . . . Walls Destroyed . | . . . Machines Disabled . | . . . Actions | -11 -10 -9 --------- Run | Scr Mat Mat Total 537 | 53 194 290 Wait 42 | . 16 26 Move 355 | 41 146 168 Hop . | . . . Pick Up 12 | 6 3 3 Fast Attach 10 | 6 1 3 Attach 9 | . . 9 Detach 1 | . . 1 Swap 2 | . 1 1 Drop 1 | . 1 . Fire 100 | . 25 75 Melee . | . . . Ram 3 | . . 3 Kick . | . . . Crush 2 | . 1 1 Escape Stasis . | . . . Rewire . | . . . Trap . | . . . Miscellaneous . | . . . Route ------- -11/Scrapyard -10/Materials (discovered 3 exits: *Mat x2 / [*Min]) -9/Materials History --------- Turn | Location | Event 20 | -11/Scrapyard | Discovered new exit (range 15) 75 | -11/Scrapyard | Entered Materials 185 | -10/Materials | Discovered new exit (range 15) 305 | -10/Materials | Build established: Mutant 324 | -10/Materials | Discovered new exit (range 12) 364 | -10/Materials | Discovered new exit (range 9) 403 | -10/Materials | Entered another Materials area 403 | -9/Materials | Evolved 2 slots: Utility x2 752 | -9/Materials | Lost 6 parts (2p1n1u2w) 925 | -9/Materials | Core integrity fell below 50% 946 | -9/Materials | Core integrity fell below 20% 947 | -9/Materials | Self-destructed Last Messages --------------- 00907_ Acquired 2 matter. 00909_ Acquired 1 matter. 00911_ Lgt. Assault Rifle destroyed. 00913_ Acquired Lgt. EM Pulse Cannon. 00925_ Aluminum Leg destroyed. 00925_ Lgt. EM Pulse Cannon destroyed. 00926_ R-06 Scavenger inserts Aluminum Leg into recycling unit. 00927_ Recycling unit begins recycling process. 00927_ Aluminum Leg destroyed. 00928_ Lgt. Assault Rifle destroyed. 00929_ R-06 Scavenger inserts Heat Sink into recycling unit. 00929_ Slammed into S-10 Pest. 00932_ R-06 Scavenger inserts Lgt. Ion Engine into recycling unit. 00934_ Ion Engine destroyed. 00935_ R-06 Scavenger inserts Lgt. Ion Engine into recycling unit. 00936_ Recycling unit begins recycling process. 00936_ Slammed into S-10 Pest. 00940_ K-01 Serf collects debris. 00941_ Slammed into S-10 Pest. 00943_ R-06 Scavenger collects Flight Unit. Map ----- +----------------------------------------------------+ | """ ## #?# # #?????????????????????? | | "T" """ ## #?# # ##????????????????????? | | % % """ ## #?# # T#????????????????????? | | """ ## #?# # ##????????????????????? | | ##^ #??? ?# #?????????????????????? | | # ^^ #####+#### *##????????????????????? | | [ # !%!#????????????????????? | | % # %%! ==%!########?????????????? | | ##+###### = % * =%= ??????? | | ? ????# ###+######### #??????????? | | ? ???####### =% #?# #??????????? | | ? T #????????# ! #?# #??????????? | | ? #????????# #?# #??????????? | | ? ? #????????# " """ #?# #??????????? | | # ?##????????# """ """ #?# #??????????? | | #?????????????# """ """ #?########## #??????????? | | ??????????????# #???????????? #??????????? | | ??????????????# ! #?????????????#??????????? | | ??????????????#######+###????????????????????????? | | ???????????########## #??????????????????????????? | | ???????????# # ############## ???????????? | | ???????????# # ??????????? | | ???????????# """ + r ??????????? | | ???????????# """"" # k= ??????????? | | ????????????? """"" ####s######### ???????????? | | ????????????? """"" # %Y%@s#?????????????????????? | | ?????????????? """ # %"""#?????????????????????? | | ??????????????? # Y"#?????????????????????? | | ??????????????? #== """#?????????????????????? | | ???????????????######= #?????????????????????? | | ????????????????????# #????????????????????? | | ????????????????????#########????????????????????? | | ?????????????????????????????????????????????????? | | ?????????????????????????????????????????????????? | | ?????????????????????????????????????????????????? | | ?????????????????????????????????????????????????? | | ?????????????????????????????????????????????????? | | ?????????????????????????????????????????????????? | | ?????????????????????????????????????????????????? | | ?????????????????????????????????????????????????? | | ?????????????????????????????????????????????????? | | ?????????????????????????????????????????????????? | | ?????????????????????????????????????????????????? | | ?????????????????????????????????????????????????? | | ?????????????????????????????????????????????????? | | ?????????????????????????????????????????????????? | | ?????????????????????????????????????????????????? | | ?????????????????????????????????????????????????? | | ?????????????????????????????????????????????????? | | ?????????????????????????????????????????????????? | +----------------------------------------------------+ Best States ------------- Heat Dissipation 28 Energy Generation 10 Energy Capacity 250 Matter Stores 300 Matter Capacity 300 Sight Range 16 Terrain Scan Density 10 Evasion (%) 40 Recoil Reduction 2 Offensive Hacking 10 Item Schematics ----------------- Hacking Suite | -9/Materials | Scanalyzed Lrg. Storage Unit | -9/Materials | Scanalyzed Robot Schematics ------------------ None Fabricated ------------ Nothing Alien Tech Used ----------------- None Achievements -------------- None Challenges ------------ None Game ------ Seed ImpactExplosiveRailgun Manual? 0 Play Time 00:08:35 Cumulative 207.0 hours Start 2021.10.03 @ 10:31:29 End 2021.10.03 @ 10:36:55 Sessions 1 Manual Loads 0 Difficulty Rogue Special Mode None Game No. 264 Rogue 264 Adventurer 0 Explorer 0 Win Type - Total 6 Types 4/0/1/1/0/0/0/0/0 Lore% 79 Gallery% 81 Achievement% 64 Wizard Run 0 Options --------- ASCII 0 Keyboard 0 Movement Arrows Keybinds 0 Fullscreen 1 Font 18/SmallcapsGlow Map View 76x50 Tactical HUD 1 Map Filters NONE Filters NONE Steam 1 RUN: d4c88225-f7d2-4d6b-acd6-c0717e78069e